bitfinex-derivatives/quotes_SOLF0:USTF0_20250626
["timestamp","ask_amount","ask_price","bid_price","bid_amount"]
[1750913178160,38.48602899,145.16,145.12,6.38930171]
[1750913178358,38.48602899,145.16,145.14,6.8867]
[1750913179465,38.48602899,145.16,145.15,6.8863]
[1750913180479,35.08,145.16,145.15,6.8863]
[1750913181161,38.48602899,145.16,145.11,6.38930171]
[1750913181358,3.40602899,145.13,145.11,6.38930171]
[1750913182561,3.41784448,145.13,145.11,6.38930171]
[1750913182763,35.06,145.12,145.1,6.38930171]
[1750913183067,3.41784448,145.11,145.09,6.38930171]
[1750913183865,3.41784448,145.11,145.09,13.27810171]
[1750913184369,3.41784448,145.11,145.09,6.8888]
[1750913185266,3.41784448,145.11,145.08,13.27870171]
[1750913186268,3.41784448,145.11,145.09,6.8891]
[1750913186769,3.41784448,145.11,145.08,13.27870171]
[1750913186970,10.30604448,145.11,145.08,13.27870171]
[1750913187163,3.41784448,145.11,145.08,6.38930171]
[1750913187364,3.41784448,145.11,145.06,6.38930171]
[1750913187565,10.30634448,145.11,145.06,6.38930171]
[1750913187974,10.30634448,145.11,145.07,6.8898]
[1750913188363,3.41784448,145.11,145.09,6.8891]
[1750913188869,3.41784448,145.11,145.06,6.38930171]
[1750913189069,3.41784448,145.11,145.08,6.8895]
[1750913189768,3.41784448,145.11,145.07,6.89]
[1750913190765,10.30624448,145.11,145.07,6.89]
[1750913190967,10.30624448,145.11,145.06,6.38930171]
[1750913190968,3.41784448,145.11,145.06,6.38930171]
[1750913192072,38.47784448,145.12,145.06,6.38930171]
[1750913192271,38.47784448,145.12,145.08,6.38930171]
[1750913192467,38.47784448,145.12,145.07,6.38930171]
[1750913192673,38.47784448,145.12,145.09,6.8888]
[1750913193566,38.47784448,145.12,145.1,6.8885]
[1750913193876,35.06,145.12,145.07,6.38930171]
[1750913194075,35.06,145.12,145.08,6.38930171]
[1750913194479,35.08,145.13,145.07,6.38930171]
[1750913194679,10.30464448,145.14,145.1,6.8883]
[1750913194873,35.08,145.13,145.1,6.8883]
[1750913195273,35.08,145.13,145.07,6.3859786]
[1750913195483,3.41784448,145.12,145.07,6.3859786]
[1750913195679,3.41784448,145.12,145.08,6.8894]
[1750913195974,3.41784448,145.12,145.06,11.2772786]
[1750913197566,6.8887,145.1,145.06,4.8913]
[1750913197872,3.41784448,145.12,145.06,4.8913]
[1750913198076,35.08,145.09,145.06,2.4218]
[1750913198671,3.42052799,145.07,145.03,6.3859786]
[1750913198873,35.08,145.09,145.01,6.3859786]
[1750913199178,3.42052799,145.08,145.05,6.8907]
[1750913199574,3.42052799,145.09,145.02,6.3859786]
[1750913199879,3.42052799,145.09,145.06,6.8901]
[1750913199880,35.08,145.08,145.06,6.8901]
[1750913200081,35.08,145.08,145.03,6.3859786]
[1750913200280,35.08,145.08,145.04,2.381]
[1750913200976,35.08,145.08,145.06,6.8902]
[1750913201483,35.08,145.08,145.04,2.381]
[1750913201682,35.08,145.08,145.07,6.8901]
[1750913203282,35.08,145.08,145.06,6.8905]
[1750913203479,35.08,145.08,145.04,2.381]
[1750913203879,35.08,145.08,145.04,127.381]
[1750913204083,35.08,145.08,145.04,125.0]
[1750913205181,35.08,145.08,145.04,131.3859786]
[1750913205582,35.08,145.08,145.07,6.8901]
[1750913210786,35.06,145.11,145.05,8.6242786]
[1750913210987,35.06,145.11,145.05,133.6242786]
[1750913211384,35.06,145.11,145.08,6.8893]
[1750913211983,35.06,145.11,145.09,6.8891]
[1750913213789,35.06,145.11,145.08,6.8894]
[1750913213981,41.9483,145.11,145.08,6.8894]
[1750913216589,35.06,145.11,145.09,6.8891]
[1750913216791,35.06,145.11,145.07,6.3859786]
[1750913217191,41.9483,145.11,145.08,6.8893]
[1750913217483,41.9483,145.11,145.08,13.2752786]
[1750913219490,41.9483,145.11,145.09,6.3859786]
[1750913221090,35.06,145.11,145.09,6.3859786]
[1750913221593,41.9485,145.11,145.09,6.3859786]
[1750913222089,6.8887,145.1,145.09,6.3859786]
[1750913222286,10.30846075,145.1,145.08,6.3859786]
[1750913223395,35.06,145.11,145.08,13.2755786]
[1750913223694,35.06,145.14,145.1,8.56636781]
[1750913223894,35.06,145.14,145.12,6.43235135]
[1750913224395,10.3041377,145.13,145.12,6.43235135]
[1750913225294,7.69345246,145.13,145.1,6.43235135]
[1750913225504,3.4165377,145.13,145.1,6.43235135]
[1750913226195,7.69345246,145.13,145.1,6.43235135]
[1750913226596,6.8882,145.11,145.1,6.43235135]
[1750913226898,7.69345246,145.13,145.1,6.43235135]
[1750913227100,7.69345246,145.13,145.09,8.56636781]
[1750913227101,6.888,145.12,145.11,6.43235135]
[1750913228298,6.8882,145.11,145.1,8.56636781]
[1750913228502,7.69345246,145.13,145.09,8.56636781]
[1750913228697,4.27691476,145.13,145.11,6.44175896]
[1750913228897,10.3042377,145.12,145.11,6.44175896]
[1750913229798,10.3042377,145.12,145.1,6.44175896]
[1750913229996,6.8882,145.11,145.1,6.44175896]
[1750913230902,6.8887,145.1,145.09,6.44175896]
[1750913231101,45.3652377,145.1,145.09,6.44175896]
[1750913231491,45.3652377,145.1,145.08,8.56636781]
[1750913231900,6.8891,145.09,145.08,8.56636781]
[1750913232095,6.8891,145.09,145.07,8.56636781]
[1750913233904,6.8896,145.08,145.07,8.56636781]
[1750913234106,6.8896,145.08,145.06,8.56636781]
[1750913237405,3.41908434,145.09,145.06,8.56636781]
[1750913237601,35.06,145.1,145.07,8.56636781]
[1750913237807,35.06,145.1,145.09,6.44238424]
[1750913238511,35.06,145.1,145.08,8.56636781]
[1750913239003,35.06,145.1,145.08,15.45596781]
[1750913239310,38.47908434,145.1,145.08,8.56636781]
[1750913240514,6.8891,145.09,145.08,8.56636781]
[1750913241107,6.8891,145.09,145.07,12.68597633]
[1750913243915,6.8896,145.08,145.07,12.68597633]
[1750913244110,6.8896,145.08,145.06,12.68597633]
[1750913247918,6.8901,145.07,145.06,12.68597633]
[1750913248213,6.8901,145.07,145.05,12.68597633]
[1750913253921,6.8906,145.06,145.05,12.68597633]
[1750913254313,6.8903,145.07,145.05,12.68597633]
[1750913255511,6.8898,145.08,145.06,8.59267283]
[1750913255920,38.47925397,145.1,145.06,8.59267283]
[1750913256120,35.06,145.1,145.08,8.59267283]
[1750913256922,35.06,145.1,145.08,15.48197283]
[1750913258226,35.06,145.1,145.08,8.59267283]
[1750913258627,38.47880369,145.1,145.08,8.59267283]
[1750913258922,38.47880369,145.1,145.09,6.44409836]
[1750913260732,45.36750369,145.1,145.09,6.44409836]
[1750913261825,45.36750369,145.1,145.08,8.59267283]
[1750913264319,6.8891,145.09,145.08,8.59267283]
[1750913265122,45.36760369,145.1,145.08,8.59267283]
[1750913265531,35.06,145.1,145.08,8.59267283]
[1750913266327,35.06,145.1,145.09,8.59267283]
[1750913268926,35.06,145.1,145.08,19.57557633]
[1750913269741,35.06,145.1,145.09,8.59204648]
[1750913270134,35.06,145.1,145.08,19.57557633]
[1750913271440,35.06,145.1,145.09,6.8891]
[1750913274542,35.06,145.1,145.08,19.57547633]
[1750913275444,35.06,145.1,145.09,8.58995026]
[1750913278541,35.06,145.1,145.09,15.47905026]
[1750913279850,35.06,145.1,145.09,8.58995026]
[1750913280343,37.24794816,145.1,145.08,8.58995026]
[1750913280548,2.18794816,145.09,145.08,8.58995026]
[1750913281551,9.07704816,145.09,145.08,8.58995026]
[1750913282345,6.8891,145.09,145.08,8.58995026]
[1750913283438,41.9488,145.1,145.08,8.58995026]
[1750913284646,41.9488,145.1,145.06,19.57637633]
[1750913284647,6.8891,145.09,145.07,8.58995026]
[1750913285146,6.8896,145.08,145.07,8.58995026]
[1750913285448,3.41902801,145.09,145.06,8.58995026]
[1750913285646,35.06,145.1,145.07,15.47965026]
[1750913285951,35.06,145.1,145.09,6.44407765]
[1750913286449,35.06,145.1,145.08,8.58995026]
[1750913288647,35.06,145.1,145.09,6.8891]
[1750913288954,35.06,145.1,145.09,15.47905026]
[1750913289539,35.02,145.13,145.1,6.8886]
[1750913289742,35.02,145.13,145.12,8.58971646]
[1750913291252,35.02,145.13,145.11,8.58971646]
[1750913291651,41.9075,145.13,145.11,8.58971646]
[1750913293555,35.02,145.13,145.11,8.58971646]
[1750913294543,35.02,145.13,145.12,8.58971646]
[1750913295154,35.02,145.13,145.11,15.47781646]
[1750913295456,35.02,145.13,145.12,8.58971646]
[1750913296259,35.02,145.13,145.11,15.47781646]
[1750913296961,35.02,145.16,145.12,12.68597633]
[1750913297158,35.02,145.16,145.15,6.43158536]
[1750913297862,41.9058,145.16,145.15,6.43158536]
[1750913298360,35.02,145.16,145.15,6.43158536]
[1750913298961,41.9058,145.16,145.15,6.43158536]
[1750913299751,45.32309332,145.16,145.15,6.43158536]
[1750913300361,6.8863,145.15,145.14,6.43158536]
[1750913300660,38.43729332,145.16,145.13,6.43158536]
[1750913300854,3.41729332,145.14,145.12,6.43158536]
[1750913301059,3.41729332,145.13,145.1,6.43158536]
[1750913301260,35.0,145.12,145.1,6.43158536]
[1750913301459,6.8882,145.11,145.1,6.43158536]
[1750913303965,10.30549332,145.11,145.1,6.43158536]
[1750913304354,6.8887,145.1,145.09,8.57885934]
[1750913304557,6.8887,145.1,145.08,8.57885934]
[1750913305159,6.8891,145.09,145.08,8.57885934]
[1750913305369,6.8891,145.09,145.07,8.57885934]
[1750913308578,6.8889,145.1,145.07,8.57885934]
[1750913308778,6.8889,145.1,145.09,6.43220553]
[1750913311077,3.41664753,145.16,145.09,12.68597633]
[1750913311277,3.41664753,145.16,145.13,6.43076579]
[1750913311475,34.98,145.17,145.09,12.68597633]
[1750913311476,10.30344753,145.14,145.12,6.43076579]
[1750913312569,10.30344753,145.14,145.13,6.43076579]
[1750913313377,3.41664753,145.14,145.13,6.43076579]
[1750913314784,10.30344753,145.14,145.12,6.43076579]
[1750913314983,34.96,145.13,145.12,6.43076579]
[1750913317481,34.96,145.13,145.11,6.43076579]
[1750913317880,6.8877,145.12,145.11,6.43076579]
[1750913321087,6.8887,145.1,145.09,6.43076579]
[1750913321289,3.41752358,145.1,145.08,6.43076579]
[1750913321488,34.96,145.09,145.07,8.57435439]
[1750913321690,41.8486,145.11,145.08,8.57435439]
[1750913321985,34.96,145.11,145.1,6.43105322]
[1750913323188,41.8482,145.11,145.1,6.43105322]
[1750913323695,41.8482,145.11,145.09,6.43105322]
[1750913326083,34.96,145.11,145.1,6.43105322]
[1750913326790,41.8482,145.11,145.1,6.43105322]
[1750913326986,34.96,145.11,145.1,6.43105322]
[1750913327186,134.1,145.15,145.11,6.8879]
[1750913327187,34.98,145.15,145.11,6.8879]
[1750913327386,34.98,145.15,145.13,6.43031253]
[1750913329895,41.8663,145.15,145.13,6.43031253]
[1750913333394,34.98,145.15,145.13,6.43031253]
[1750913333692,34.98,145.15,145.14,6.43031253]
[1750913333998,6.8853,145.18,145.13,12.68597633]
[1750913334182,6.8853,145.18,145.16,6.43027347]
[1750913334384,6.8847,145.19,145.17,6.43027347]
[1750913334694,6.8847,145.19,145.16,6.43027347]
[1750913336288,3.41436778,145.18,145.16,6.43027347]
[1750913336485,3.41436778,145.18,145.15,6.43027347]
[1750913337392,6.8857,145.17,145.15,6.43027347]
[1750913337783,42.1657,145.17,145.15,6.43027347]
[1750913338796,35.28,145.17,145.15,6.43027347]
[1750913339492,35.28,145.17,145.16,6.43027347]
[1750913340087,42.1653,145.17,145.16,6.43027347]
[1750913340599,42.1653,145.17,145.15,6.43027347]
[1750913342405,6.8858,145.16,145.15,6.43027347]
[1750913342698,3.41436778,145.16,145.13,6.43027347]
[1750913343097,6.8868,145.15,145.14,6.43027347]
[1750913343493,3.41436778,145.16,145.14,6.43027347]
[1750913344201,10.30046778,145.16,145.14,6.43027347]
[1750913344701,6.8863,145.15,145.14,6.43027347]
[1750913346494,10.30036778,145.16,145.14,6.43027347]
[1750913346699,3.41436778,145.16,145.14,6.43027347]
[1750913347700,6.8863,145.15,145.14,6.43027347]
[1750913348100,10.30016778,145.16,145.14,6.43027347]
[1750913348495,3.41436778,145.16,145.15,6.43027347]
[1750913348798,42.1657,145.17,145.15,6.43027347]
[1750913350005,42.1657,145.17,145.16,6.43027347]
[1750913351405,42.1657,145.17,145.15,6.43027347]
[1750913352200,42.1657,145.17,145.16,6.43027347]
[1750913355811,35.28,145.17,145.16,6.43027347]
[1750913356506,42.1653,145.17,145.16,6.43027347]
[1750913358317,35.28,145.17,145.14,6.43027347]
[1750913358511,3.41436778,145.16,145.14,6.43027347]
[1750913358715,3.41436778,145.16,145.13,6.43027347]
[1750913358909,6.8868,145.14,145.13,6.43027347]
[1750913359105,3.41436778,145.14,145.12,6.43027347]
[1750913359511,6.8877,145.12,145.11,6.43027347]
[1750913360013,6.8887,145.1,145.09,6.43027347]
[1750913360616,3.41436778,145.12,145.09,6.43027347]
[1750913360916,35.26,145.13,145.1,8.57369797]
[1750913361108,35.26,145.13,145.12,6.42303126]
[1750913361705,35.26,145.13,145.11,6.42303126]
[1750913361917,42.1473,145.13,145.11,6.42303126]
[1750913362310,35.26,145.13,145.11,6.42303126]
[1750913363016,42.1473,145.13,145.11,6.42303126]
[1750913365221,6.8877,145.12,145.11,6.42303126]
[1750913367120,38.67436778,145.13,145.1,6.42303126]
[1750913367121,6.8882,145.11,145.1,6.42303126]
[1750913370722,6.8879,145.12,145.1,6.42303126]
[1750913372125,38.67436778,145.13,145.1,6.42303126]
[1750913372126,45.56176778,145.13,145.1,6.42303126]
[1750913373324,38.67436778,145.13,145.1,13.31153126]
[1750913373524,35.26,145.13,145.12,6.42303126]
[1750913374926,42.1472,145.13,145.12,6.42303126]
[1750913375226,42.1472,145.13,145.11,6.42303126]
[1750913375613,35.26,145.13,145.11,6.42303126]
[1750913375821,35.26,145.13,145.12,6.42303126]
[1750913378726,42.1472,145.13,145.12,6.42303126]
[1750913379726,42.1472,145.13,145.11,6.42303126]
[1750913380130,6.8877,145.12,145.11,6.42303126]
[1750913382534,6.8882,145.11,145.1,6.42303126]
[1750913386028,38.67436778,145.13,145.1,6.42303126]
[1750913386230,38.67436778,145.13,145.11,6.42303126]
[1750913386431,6.8878,145.12,145.11,6.42303126]
[1750913386736,38.67436778,145.13,145.11,6.42303126]
[1750913387236,45.56186778,145.13,145.11,6.42303126]
[1750913392040,6.8877,145.12,145.11,6.42303126]
[1750913394746,42.1475,145.13,145.1,8.57369797]
[1750913395046,42.1475,145.13,145.12,6.42936938]
[1750913400843,6.8877,145.12,145.11,6.42936938]
[1750913401252,6.8882,145.11,145.1,8.57369797]
[1750913401553,3.41773938,145.12,145.1,8.57369797]
[1750913402155,35.26,145.13,145.11,8.57369797]
[1750913403254,35.26,145.13,145.12,6.4447015]
[1750913403454,35.26,145.13,145.11,15.46179797]
[1750913403953,35.26,145.13,145.12,6.8877]
[1750913405257,35.26,145.13,145.11,19.57397633]
[1750913406358,35.26,145.13,145.12,8.59290223]
[1750913407760,35.26,145.13,145.11,8.59290223]
[1750913408158,3.41773938,145.12,145.1,8.59290223]
[1750913408360,3.41773938,145.12,145.11,6.44535572]
[1750913408558,7.74092781,145.12,145.11,6.44535572]
[1750913408760,14.62862781,145.12,145.11,6.44535572]
[1750913408946,7.74092781,145.12,145.08,8.59290223]
[1750913409146,3.41773938,145.09,145.06,8.59290223]
[1750913409448,3.41773938,145.07,145.05,8.59290223]
[1750913410258,3.41773938,145.07,145.04,6.32362761]
[1750913410459,3.42214064,145.05,145.0,12.68597633]
[1750913410662,34.98,145.04,145.0,12.68597633]
[1750913410857,34.98,145.04,144.99,12.68597633]
[1750913411056,3.42214064,145.03,144.98,12.68597633]
[1750913411353,10.31524064,145.01,144.96,11.6943]
[1750913411555,34.98,145.0,144.96,4.7993]
[1750913411748,3.42214064,144.97,144.95,5.6631612]
[1750913412156,34.98,145.0,144.95,5.6631612]
[1750913412462,3.42214064,144.99,144.95,5.6631612]
[1750913413161,34.98,145.0,144.95,5.6631612]
[1750913413360,602.019,145.09,144.97,3.42214064]
[1750913413361,34.98,145.02,144.97,3.42214064]
[1750913413562,34.98,145.03,144.97,3.42214064]
[1750913413768,38.40214064,145.04,144.98,2.4521]
[1750913413961,3.42214064,145.02,144.96,4.8263]
[1750913415457,6.893,145.01,144.97,6.8948]
[1750913415671,34.98,145.0,144.97,6.8948]
[1750913416870,41.8735,145.0,144.96,11.7215]
[1750913417865,34.98,145.0,144.96,4.8263]
[1750913418073,3.42214064,145.05,144.97,3.42214064]
[1750913418271,3.42214064,145.05,144.97,128.42214064]
[1750913418566,34.98,145.06,144.99,3.42214064]
[1750913418771,34.98,145.06,145.0,2.3151]
[1750913419168,41.8706,145.06,145.02,6.8921]
[1750913419368,34.98,145.06,145.0,2.3151]
[1750913420065,6.8928,145.02,144.98,6.8942]
[1750913420474,41.8728,145.02,144.98,6.8942]
[1750913422371,10.31514064,145.01,144.97,6.8947]
[1750913422573,3.42214064,145.01,144.96,4.8263]
[1750913423182,6.8943,144.99,144.96,4.8263]
[1750913423577,10.31564064,145.0,144.96,11.7215]
[1750913424669,6.8931,145.01,144.97,6.8948]
[1750913424874,35.06,145.01,144.96,133.24844064]
[1750913425276,35.06,145.01,144.99,6.8935]
[1750913425476,35.06,145.01,144.96,133.24844064]
[1750913425880,35.06,145.01,145.0,6.8934]
[1750913426676,38.48214064,145.04,145.0,6.8934]
[1750913427880,38.48214064,145.04,145.01,6.8929]
[1750913428581,35.06,145.04,145.02,6.8923]
[1750913430581,41.9511,145.05,145.02,6.8923]
[1750913430976,35.06,145.05,145.02,6.8923]
[1750913431381,41.9512,145.05,145.02,6.8923]
[1750913431578,41.9512,145.05,145.01,6.8929]
[1750913432079,6.8915,145.04,145.01,6.8929]
[1750913432478,35.06,145.05,145.01,6.8929]
[1750913432686,35.06,145.04,145.02,6.8924]
[1750913433284,35.06,145.05,145.02,6.8924]
[1750913433585,41.9512,145.05,145.02,6.8924]
[1750913434080,35.06,145.05,145.03,6.8919]
[1750913434384,35.06,145.06,145.03,6.8919]
[1750913436087,35.06,145.06,145.04,6.8913]
[1750913437384,35.06,145.06,145.0,128.421114]
[1750913437590,35.06,145.06,145.0,163.481114]
[1750913437990,35.06,145.06,145.05,6.891]
[1750913438892,35.06,145.06,145.01,6.8929]
[1750913439094,35.06,145.06,144.99,130.828614]
[1750913439592,35.06,145.06,145.01,3.421114]
[1750913439798,35.06,145.06,145.02,4.6698]
[1750913439998,35.06,145.06,145.05,6.891]
[1750913440391,35.06,145.06,145.02,129.6698]
[1750913440695,35.06,145.06,145.03,6.8919]
[1750913440895,35.06,145.06,145.02,129.6698]
[1750913441285,41.9509,145.06,145.02,136.5618]
[1750913441487,41.9509,145.06,145.02,129.6698]
[1750913441689,35.06,145.06,145.02,129.6698]
[1750913442191,35.06,145.06,145.03,6.8919]
[1750913442387,35.06,145.06,145.02,129.6698]
[1750913442783,630.2,145.09,145.03,3.421114]
[1750913443107,35.06,145.09,145.03,128.421114]
[1750913443299,35.06,145.09,145.06,6.8901]
[1750913443993,35.06,145.11,145.05,3.421114]
[1750913444697,35.06,145.11,145.06,2.4043]
[1750913445803,41.9486,145.11,145.07,6.8898]
[1750913445994,38.481114,145.11,145.06,2.4043]
[1750913446398,6.8892,145.09,145.06,9.2945]
[1750913447201,6.8887,145.1,145.07,6.89]
[1750913448302,6.8892,145.09,145.06,2.4043]
[1750913449608,6.8892,145.09,145.06,9.2948]
[1750913450106,6.8896,145.08,145.06,2.4043]
[1750913450698,6.8893,145.09,145.06,2.4043]
[1750913451308,6.8893,145.09,145.06,9.2948]
[1750913458113,6.8888,145.1,145.06,9.2948]
[1750913458908,6.8888,145.1,145.07,6.8901]
[1750913459916,6.8888,145.1,145.06,9.2946]
[1750913460119,6.8893,145.09,145.06,9.2946]
[1750913461018,38.47858555,145.11,145.04,133.5213728]
[1750913461224,3.41858555,145.09,145.04,125.0]
[1750913463019,3.41858555,145.09,145.04,133.5213728]
[1750913463521,6.8898,145.08,145.05,6.891]
[1750913465018,6.8898,145.08,145.04,140.4126728]
[1750913465424,6.8898,145.08,145.04,125.0]
[1750913465833,6.8898,145.08,145.04,133.5213728]
[1750913466533,6.8898,145.08,145.05,6.891]
[1750913468937,6.8898,145.08,145.06,6.42053413]
[1750913469138,6.8901,145.07,145.06,6.42053413]
[1750913470134,6.8901,145.07,145.05,6.42053413]
[1750913470639,6.8901,145.07,145.06,6.42053413]
[1750913473437,3.41858555,145.09,145.06,6.42053413]
[1750913473438,6.8898,145.08,145.06,6.42053413]
[1750913474129,6.8898,145.08,145.07,6.42053413]
[1750913478945,6.8898,145.08,145.05,15.4123728]
[1750913479242,6.8898,145.08,145.07,6.43768383]
[1750913480141,6.8901,145.07,145.06,8.5213728]
[1750913480346,38.39858555,145.07,145.05,6.44211709]
[1750913480547,42.73703419,145.07,145.05,6.44211709]
[1750913480847,38.39858555,145.07,145.05,6.44211709]
[1750913481248,42.73703419,145.07,145.05,6.44211709]
[1750913481448,38.39858555,145.07,145.05,6.44211709]
[1750913481647,6.8906,145.06,145.05,6.44211709]
[1750913482343,6.8906,145.06,145.04,6.44211709]
[1750913482548,6.891,145.05,145.04,6.44211709]
[1750913482951,38.39858555,145.07,145.04,6.44211709]
[1750913483250,6.8908,145.06,145.04,6.44211709]
[1750913484051,45.28878555,145.07,145.04,6.44211709]
[1750913484251,45.28878555,145.07,145.05,6.44211709]
[1750913484551,45.28878555,145.07,145.04,6.44211709]
[1750913485355,38.39858555,145.07,145.04,6.44211709]
[1750913485652,34.98,145.07,145.06,6.44211709]
[1750913486852,34.98,145.07,145.05,6.44211709]
[1750913488257,34.98,145.07,145.05,13.33311709]
[1750913488756,34.98,145.07,145.06,6.44211709]
[1750913489155,34.98,145.07,145.05,15.4123728]
[1750913489349,34.98,145.07,145.05,8.5213728]
[1750913489550,34.98,145.07,145.06,6.43726062]
[1750913490156,45.28868555,145.07,145.06,6.43726062]
[1750913490355,38.39858555,145.07,145.04,6.43726062]
[1750913491461,6.8906,145.06,145.04,6.43726062]
[1750913491659,38.39858555,145.07,145.04,6.43726062]
[1750913492255,6.8909,145.06,145.04,6.43726062]
[1750913493762,6.891,145.05,145.04,6.43726062]
[1750913493961,10.30958555,145.05,145.04,6.43726062]
[1750913505969,3.41858555,145.05,145.04,6.43726062]
[1750913506568,10.30958555,145.05,145.04,6.43726062]
[1750913509567,6.8906,145.06,145.04,6.43726062]
[1750913509767,38.39858555,145.07,145.04,6.43726062]
[1750913509968,38.39858555,145.07,145.05,6.43726062]
[1750913510170,45.28898555,145.07,145.05,6.43726062]
[1750913511670,34.98,145.07,145.06,6.43726062]
[1750913512472,45.28868555,145.07,145.06,6.43726062]
[1750913512671,38.39858555,145.07,145.05,6.43726062]
[1750913512868,6.8906,145.06,145.05,6.43726062]
[1750913513466,6.891,145.05,145.04,6.43726062]
[1750913513668,10.30958555,145.05,145.04,6.43726062]
[1750913519880,6.891,145.05,145.04,6.43726062]
[1750913522184,6.891,145.05,145.03,8.5213728]
[1750913522377,6.8908,145.06,145.03,8.5213728]
[1750913522580,6.8908,145.06,145.05,6.44765802]
[1750913522776,34.98,145.07,145.04,8.5213728]
[1750913523082,34.92,145.09,145.06,8.5213728]
[1750913523383,38.34140451,145.11,145.06,12.68597633]
[1750913523572,3.42140451,145.09,145.08,6.44456021]
[1750913523777,38.34140451,145.09,145.06,8.5923701]
[1750913523974,38.34140451,145.09,145.07,8.5923701]
[1750913524298,34.92,145.09,145.07,8.5923701]
[1750913524877,41.8093,145.09,145.07,8.5923701]
[1750913525279,41.8093,145.09,145.08,6.44359562]
[1750913530686,34.92,145.09,145.08,6.44359562]
[1750913532487,41.8091,145.09,145.08,6.44359562]
[1750913534186,41.8091,145.09,145.05,11.7824]
[1750913534187,41.8091,145.09,145.07,6.44359562]
[1750913534586,6.8896,145.08,145.07,6.44359562]
[1750913538285,9.07791483,145.08,145.07,6.44359562]
[1750913539093,6.8896,145.08,145.07,6.44359562]
[1750913539295,9.07791483,145.08,145.07,6.44359562]
[1750913540690,2.18831483,145.08,145.05,6.44359562]
[1750913540984,2.18831483,145.06,145.04,6.44359562]
[1750913541181,43.99931483,145.05,145.04,6.44359562]
[1750913541392,37.10831483,145.05,145.03,6.44359562]
[1750913541690,2.18831483,145.04,145.03,6.44359562]
[1750913541990,2.18831483,145.04,145.02,6.44359562]
[1750913542193,2.18831483,145.03,145.02,6.44359562]
[1750913543687,9.08031483,145.03,145.02,6.44359562]
[1750913544293,6.892,145.03,145.02,6.44359562]
[1750913545993,6.892,145.03,145.01,6.44359562]
[1750913549296,6.8925,145.02,145.01,6.44359562]
[1750913550094,6.8922,145.03,145.01,6.44359562]
[1750913553200,6.8925,145.02,145.01,6.44359562]
[1750913554499,6.8925,145.02,145.0,6.44359562]
[1750913555400,3.42210965,145.04,145.0,6.44359562]
[1750913555800,6.8928,145.02,145.0,6.44359562]
[1750913558203,6.8921,145.03,145.0,6.44359562]
[1750913558396,34.9,145.03,145.02,6.44359562]
[1750913563903,41.792,145.03,145.02,6.44359562]
[1750913564103,34.9,145.03,145.01,6.44359562]
[1750913564904,6.8925,145.02,145.01,6.44359562]
[1750913566113,6.8929,145.01,145.0,6.44359562]
[1750913566304,3.42210965,145.02,145.0,6.44359562]
[1750913567411,10.31490965,145.02,145.0,6.44359562]
[1750913567806,34.9,145.03,144.98,131.44359562]
[1750913568105,3.42210965,145.02,144.98,6.44359562]
[1750913569013,6.8931,145.01,144.98,6.44359562]
[1750913569602,6.8925,145.02,144.98,6.44359562]
[1750913569811,34.9,145.03,144.99,6.44359562]
[1750913569812,38.32210965,145.03,144.99,6.44359562]
[1750913570015,45.21450965,145.03,144.99,6.44359562]
[1750913570702,45.21450965,145.03,145.0,6.44359562]
[1750913574114,38.32210965,145.03,145.01,6.44359562]
[1750913574513,34.9,145.03,145.01,6.44359562]
[1750913575707,38.32210965,145.03,145.01,6.44359562]
[1750913575901,38.32210965,145.03,145.0,6.44359562]
[1750913576401,38.32210965,145.03,145.01,6.44359562]
[1750913576602,34.9,145.03,145.01,6.44359562]
[1750913576810,38.32210965,145.03,145.0,6.44359562]
[1750913577214,38.32210965,145.03,145.01,6.44359562]
[1750913577417,45.21440965,145.03,145.01,6.44359562]
[1750913577716,38.32210965,145.03,145.01,6.44359562]
[1750913578618,6.8925,145.02,145.01,6.44359562]
[1750913579517,6.8925,145.02,145.0,6.44359562]
[1750913582032,45.21420965,145.03,145.0,6.44359562]
[1750913582229,45.21420965,145.03,145.01,6.44359562]
[1750913583434,34.9,145.03,145.01,6.44359562]
[1750913583621,34.9,145.03,145.02,6.44359562]
[1750913583934,34.9,145.03,145.01,8.5923701]